[Event "Titled Tuesday Blitz February 07 Late 2023"]
[White "Timmermans, Mark"]
[Black "Buchenau, Frank"]
[WhiteFideId "1026399"]
[BlackFideId "4604350"]
[WhiteElo "2392"]
[BlackElo "2222"]
[Result "0-1"]
[Round "01"]
[TimeControl "180+2"]
[Date "2023.02.07"]
[WhiteClock "0:00:58"]
[BlackClock "0:00:07"]

1. e4 {[%clk 0:02:58]}  e6 {[%clk 0:03:00]} 2. d4 {[%clk 0:02:54]}  d5 {[%clk 0:03:00]} 3. Nd2 {[%clk 0:02:55]}  c5 {[%clk 0:03:00]} 4. exd5 {[%clk 0:02:55]}  Qxd5 {[%clk 0:02:59]} 5. Ngf3 {[%clk 0:02:56]}  cxd4 {[%clk 0:02:59]} 6. Bc4 {[%clk 0:02:53]}  Qd6 {[%clk 0:02:59]} 7. O-O {[%clk 0:02:53]}  Nf6 {[%clk 0:02:59]} 8. Nb3 {[%clk 0:02:50]}  Nc6 {[%clk 0:02:59]} 9. Nbxd4 {[%clk 0:02:50]}  Nxd4 {[%clk 0:02:59]} 10. Nxd4 {[%clk 0:02:51]}  a6 {[%clk 0:02:56]} 11. Re1 {[%clk 0:02:51]}  Qc7 {[%clk 0:02:55]} 12. Bd3 {[%clk 0:02:48]}  Bd6 {[%clk 0:02:35]} 13. h3 {[%clk 0:02:47]}  O-O {[%clk 0:02:32]} 14. Bg5 {[%clk 0:02:33]}  Bh2+ {[%clk 0:02:10]} 15. Kh1 {[%clk 0:02:33]}  Be5 {[%clk 0:02:07]} 16. c3 {[%clk 0:02:10]}  h6 {[%clk 0:01:55]} 17. Bd2 {[%clk 0:01:52]}  Bf4 {[%clk 0:01:49]} 18. Bxf4 {[%clk 0:01:50]}  Qxf4 {[%clk 0:01:49]} 19. Kg1 {[%clk 0:01:51]}  e5 {[%clk 0:01:20]} 20. g3 {[%clk 0:01:37]}  Qg5 {[%clk 0:01:14]} 21. h4 {[%clk 0:01:38]}  Qh5 {[%clk 0:01:09]} 22. Qxh5 {[%clk 0:01:36]}  Nxh5 {[%clk 0:01:08]} 23. Rxe5 {[%clk 0:01:37]}  Nf6 {[%clk 0:01:03]} 24. Rae1 {[%clk 0:01:37]}  Bd7 {[%clk 0:00:59]} 25. Bf1 {[%clk 0:01:36]}  Rad8 {[%clk 0:00:51]} 26. Bg2 {[%clk 0:01:36]}  b6 {[%clk 0:00:44]} 27. Bb7 {[%clk 0:01:29]}  a5 {[%clk 0:00:44]} 28. Bc6 {[%clk 0:01:29]}  Bxc6 {[%clk 0:00:41]} 29. Nxc6 {[%clk 0:01:30]}  Rd6 {[%clk 0:00:39]} 30. Nd4 {[%clk 0:01:28]}  Rc8 {[%clk 0:00:33]} 31. Kg2 {[%clk 0:01:27]}  Kf8 {[%clk 0:00:30]} 32. R1e2 {[%clk 0:01:15]}  a4 {[%clk 0:00:23]} 33. a3 {[%clk 0:01:14]}  Nd7 {[%clk 0:00:19]} 34. Rb5 {[%clk 0:01:13]}  Nc5 {[%clk 0:00:19]} 35. Rb4 {[%clk 0:01:12]}  Rf6 {[%clk 0:00:18]} 36. Nf3 {[%clk 0:01:11]}  Re8 {[%clk 0:00:18]} 37. Rxe8+ {[%clk 0:01:09]}  Kxe8 {[%clk 0:00:19]} 38. Nd2 {[%clk 0:01:07]}  Nd3 {[%clk 0:00:18]} 39. Re4+ {[%clk 0:01:06]}  Kf8 {[%clk 0:00:18]} 40. f4 {[%clk 0:01:02]}  Nxb2 {[%clk 0:00:18]} 41. Rb4 {[%clk 0:01:02]}  Nd1 {[%clk 0:00:17]} 42. Ne4 {[%clk 0:01:02]}  Re6 {[%clk 0:00:17]} 43. Kf3 {[%clk 0:01:02]}  f5 {[%clk 0:00:17]} 44. Nf2 {[%clk 0:00:58]}  Re3+ {[%clk 0:00:16]} 45. Kg2 {[%clk 0:00:59]}  Re2 {[%clk 0:00:16]} 46. Kf1 {[%clk 0:00:59]}  Rxf2+ {[%clk 0:00:15]} 47. Ke1 {[%clk 0:01:00]}  Rf3 {[%clk 0:00:15]} 48. Kxd1 {[%clk 0:01:00]}  Rxc3 {[%clk 0:00:15]} 49. Rxa4 {[%clk 0:01:00]}  Rxg3 {[%clk 0:00:15]} 50. Ra6 {[%clk 0:00:59]}  b5 {[%clk 0:00:14]} 51. Ke2 {[%clk 0:00:59]}  Rh3 {[%clk 0:00:13]} 52. Ra5 {[%clk 0:00:59]}  Rxh4 {[%clk 0:00:13]} 53. Rxb5 {[%clk 0:00:55]}  Rxf4 {[%clk 0:00:12]} 54. Ke3 {[%clk 0:00:56]}  Re4+ {[%clk 0:00:12]} 55. Kf3 {[%clk 0:00:56]}  g6 {[%clk 0:00:13]} 56. Rb7 {[%clk 0:00:55]}  h5 {[%clk 0:00:12]} 57. Ra7 {[%clk 0:00:55]}  h4 {[%clk 0:00:11]} 58. a4 {[%clk 0:00:55]}  Rg4 {[%clk 0:00:10]} 59. a5 {[%clk 0:00:56]}  Ra4 {[%clk 0:00:09]} 60. a6 {[%clk 0:00:55]}  Kg8 {[%clk 0:00:08]} 61. Kg2 {[%clk 0:00:55]}  Ra3 {[%clk 0:00:07]} 62. Kh2 {[%clk 0:00:55]}  f4 {[%clk 0:00:07]} 63. Ra8+ {[%clk 0:00:54]}  Kg7 {[%clk 0:00:07]} 64. a7 {[%clk 0:00:55]}  Kh7 {[%clk 0:00:06]} 65. Kg2 {[%clk 0:00:56]}  g5 {[%clk 0:00:06]} 66. Kh2 {[%clk 0:00:57]}  g4 {[%clk 0:00:06]} 67. Kg2 {[%clk 0:00:58]}  h3+ {[%clk 0:00:06]} 68. Kf2 {[%clk 0:00:58]}  Ra2+ {[%clk 0:00:07]} 69. Kf1 {[%clk 0:00:58]}  h2 {[%clk 0:00:07]} 0-1


[Site "https://www.chess.com"]

[Event "Titled Tuesday Blitz February 07 Late 2023"]
[White "Silva, Pedro Gil Ferreira Da"]
[Black "Kosakowski, Jakub"]
[WhiteFideId "1946102"]
[BlackFideId "1185080"]
[WhiteElo "2227"]
[BlackElo "2485"]
[Result "0-1"]
[Round "01"]
[TimeControl "180+2"]
[Date "2023.02.07"]
[WhiteClock "0:00:27"]
[BlackClock "0:01:25"]

1. e4 {[%clk 0:02:57]}  c5 {[%clk 0:02:51]} 2. Nf3 {[%clk 0:02:51]}  d6 {[%clk 0:02:50]} 3. d4 {[%clk 0:02:47]}  cxd4 {[%clk 0:02:51]} 4. Qxd4 {[%clk 0:02:47]}  Nc6 {[%clk 0:02:49]} 5. Bb5 {[%clk 0:02:43]}  a6 {[%clk 0:02:48]} 6. Bxc6+ {[%clk 0:02:42]}  bxc6 {[%clk 0:02:49]} 7. Nc3 {[%clk 0:02:42]}  e5 {[%clk 0:02:43]} 8. Qd3 {[%clk 0:02:41]}  Be6 {[%clk 0:02:40]} 9. O-O {[%clk 0:02:35]}  h6 {[%clk 0:02:36]} 10. Nd2 {[%clk 0:02:32]}  Nf6 {[%clk 0:02:31]} 11. Nc4 {[%clk 0:02:32]}  Qc7 {[%clk 0:02:28]} 12. Rd1 {[%clk 0:02:31]}  d5 {[%clk 0:02:26]} 13. exd5 {[%clk 0:01:57]}  cxd5 {[%clk 0:02:27]} 14. Ne3 {[%clk 0:01:21]}  d4 {[%clk 0:02:22]} 15. Ne4 {[%clk 0:01:20]}  dxe3 {[%clk 0:02:18]} 16. Nxf6+ {[%clk 0:01:19]}  gxf6 {[%clk 0:02:18]} 17. Bxe3 {[%clk 0:01:20]}  Be7 {[%clk 0:02:16]} 18. Qe4 {[%clk 0:01:14]}  Rc8 {[%clk 0:02:13]} 19. c3 {[%clk 0:01:12]}  Qc6 {[%clk 0:02:09]} 20. Qc2 {[%clk 0:01:04]}  Rg8 {[%clk 0:02:08]} 21. g3 {[%clk 0:01:04]}  Qf3 {[%clk 0:02:03]} 22. Qh7 {[%clk 0:00:56]}  Qg4 {[%clk 0:01:42]} 23. Qxh6 {[%clk 0:00:51]}  f5 {[%clk 0:01:38]} 24. h3 {[%clk 0:00:33]}  Qg6 {[%clk 0:01:34]} 25. Qxg6 {[%clk 0:00:32]}  Rxg6 {[%clk 0:01:34]} 26. Kh2 {[%clk 0:00:31]}  Bc5 {[%clk 0:01:31]} 27. Bxc5 {[%clk 0:00:29]}  Rxc5 {[%clk 0:01:32]} 28. Rd6 {[%clk 0:00:29]}  f4 {[%clk 0:01:31]} 29. Rxa6 {[%clk 0:00:27]}  fxg3+ {[%clk 0:01:30]} 30. fxg3 {[%clk 0:00:28]}  Rd5 {[%clk 0:01:31]} 31. Rg1 {[%clk 0:00:26]}  Rd2+ {[%clk 0:01:24]} 32. Rg2 {[%clk 0:00:26]}  Rxg2+ {[%clk 0:01:25]} 33. Kxg2 {[%clk 0:00:27]}  Bd5+ {[%clk 0:01:25]} 0-1


[Site "https://www.chess.com"]

[Event "Titled Tuesday Blitz February 07 Late 2023"]
[White "Nogerbek, Kazybek"]
[Black "Ansh M Shah"]
[WhiteFideId "13710427"]
[BlackFideId "25033379"]
[WhiteElo "2474"]
[BlackElo "2171"]
[Result "1-0"]
[Round "01"]
[TimeControl "180+2"]
[Date "2023.02.07"]
[WhiteClock "0:00:50"]
[BlackClock "0:00:12"]

1. e4 {[%clk 0:02:52]}  c6 {[%clk 0:02:59]} 2. d4 {[%clk 0:02:38]}  d5 {[%clk 0:02:59]} 3. Nd2 {[%clk 0:02:38]}  dxe4 {[%clk 0:02:58]} 4. Nxe4 {[%clk 0:02:39]}  Bf5 {[%clk 0:02:58]} 5. Nc5 {[%clk 0:02:39]}  b6 {[%clk 0:02:33]} 6. Nb3 {[%clk 0:02:36]}  e6 {[%clk 0:02:33]} 7. Nf3 {[%clk 0:02:36]}  Nf6 {[%clk 0:02:32]} 8. Bd3 {[%clk 0:02:36]}  Bxd3 {[%clk 0:02:31]} 9. Qxd3 {[%clk 0:02:37]}  Be7 {[%clk 0:02:31]} 10. O-O {[%clk 0:02:37]}  O-O {[%clk 0:02:29]} 11. c4 {[%clk 0:02:37]}  c5 {[%clk 0:02:25]} 12. Ne5 {[%clk 0:02:34]}  cxd4 {[%clk 0:02:24]} 13. Qf3 {[%clk 0:02:33]}  Nbd7 {[%clk 0:02:20]} 14. Nc6 {[%clk 0:02:33]}  Qe8 {[%clk 0:02:19]} 15. Nbxd4 {[%clk 0:02:33]}  Rc8 {[%clk 0:02:07]} 16. b3 {[%clk 0:02:14]}  Bc5 {[%clk 0:01:51]} 17. Bb2 {[%clk 0:02:10]}  a6 {[%clk 0:01:45]} 18. Rfe1 {[%clk 0:02:09]}  Nb8 {[%clk 0:01:43]} 19. Nxb8 {[%clk 0:02:01]}  Rxb8 {[%clk 0:01:44]} 20. Nf5 {[%clk 0:02:00]}  Qc8 {[%clk 0:01:22]} 21. Nxg7 {[%clk 0:01:43]}  Bxf2+ {[%clk 0:01:04]} 22. Qxf2 {[%clk 0:01:38]}  Ng4 {[%clk 0:01:04]} 23. Qd4 {[%clk 0:01:32]}  e5 {[%clk 0:01:04]} 24. Rxe5 {[%clk 0:01:30]}  Nxe5 {[%clk 0:01:01]} 25. Qxe5 {[%clk 0:01:31]}  Qc5+ {[%clk 0:01:01]} 26. Qxc5 {[%clk 0:01:31]}  bxc5 {[%clk 0:01:01]} 27. Nf5 {[%clk 0:01:32]}  Rfe8 {[%clk 0:00:59]} 28. Rf1 {[%clk 0:01:29]}  Re2 {[%clk 0:00:57]} 29. Nh6+ {[%clk 0:01:18]}  Kf8 {[%clk 0:00:57]} 30. Rxf7+ {[%clk 0:01:17]}  Ke8 {[%clk 0:00:57]} 31. Bg7 {[%clk 0:01:17]}  Rd8 {[%clk 0:00:53]} 32. Rf8+ {[%clk 0:01:13]}  Ke7 {[%clk 0:00:45]} 33. Nf5+ {[%clk 0:01:12]}  Kd7 {[%clk 0:00:44]} 34. Rxd8+ {[%clk 0:01:12]}  Kxd8 {[%clk 0:00:45]} 35. a4 {[%clk 0:01:10]}  Re1+ {[%clk 0:00:42]} 36. Kf2 {[%clk 0:01:09]}  Rb1 {[%clk 0:00:43]} 37. Bf8 {[%clk 0:01:03]}  Rb2+ {[%clk 0:00:41]} 38. Kf1 {[%clk 0:01:02]}  Rb1+ {[%clk 0:00:40]} 39. Ke2 {[%clk 0:01:02]}  Rb2+ {[%clk 0:00:41]} 40. Kf3 {[%clk 0:01:02]}  Rxb3+ {[%clk 0:00:41]} 41. Ke4 {[%clk 0:01:03]}  Rb4 {[%clk 0:00:40]} 42. Kd5 {[%clk 0:01:03]}  Rxa4 {[%clk 0:00:40]} 43. Bxc5 {[%clk 0:01:04]}  Ra2 {[%clk 0:00:40]} 44. Bb6+ {[%clk 0:00:59]}  Kd7 {[%clk 0:00:31]} 45. c5 {[%clk 0:00:58]}  Rd2+ {[%clk 0:00:29]} 46. Nd4 {[%clk 0:00:57]}  Rxg2 {[%clk 0:00:30]} 47. c6+ {[%clk 0:00:58]}  Kc8 {[%clk 0:00:29]} 48. h4 {[%clk 0:00:57]}  Rh2 {[%clk 0:00:28]} 49. Nf5 {[%clk 0:00:57]}  Rd2+ {[%clk 0:00:26]} 50. Ke6 {[%clk 0:00:56]}  Rc2 {[%clk 0:00:22]} 51. Ne7+ {[%clk 0:00:54]}  Kb8 {[%clk 0:00:22]} 52. Kd6 {[%clk 0:00:53]}  Rd2+ {[%clk 0:00:18]} 53. Nd5 {[%clk 0:00:54]}  h5 {[%clk 0:00:14]} 54. c7+ {[%clk 0:00:50]}  Kb7 {[%clk 0:00:14]} 55. Ba5 {[%clk 0:00:51]}  Kc8 {[%clk 0:00:12]} 56. Bxd2 {[%clk 0:00:50]} 1-0


[Site "https://www.chess.com"]

[Event "Titled Tuesday Blitz February 07 Late 2023"]
[White "Mikhalsky, Vladimir"]
[Black "Makridis, Dimitrios"]
[WhiteFideId "14144352"]
[BlackFideId "25864475"]
[WhiteElo "2219"]
[BlackElo "2356"]
[Result "1-0"]
[Round "01"]
[TimeControl "180+2"]
[Date "2023.02.07"]
[WhiteClock "0:00:10"]
[BlackClock "0:00:07"]

1. c4 {[%clk 0:02:50]}  c6 {[%clk 0:02:52]} 2. g3 {[%clk 0:02:49]}  Nf6 {[%clk 0:02:51]} 3. Bg2 {[%clk 0:02:48]}  g6 {[%clk 0:02:48]} 4. d4 {[%clk 0:02:45]}  Bg7 {[%clk 0:02:38]} 5. Nc3 {[%clk 0:02:40]}  O-O {[%clk 0:02:35]} 6. e4 {[%clk 0:02:40]}  d6 {[%clk 0:02:33]} 7. Nf3 {[%clk 0:02:37]}  Nbd7 {[%clk 0:02:33]} 8. O-O {[%clk 0:02:36]}  e5 {[%clk 0:02:33]} 9. h3 {[%clk 0:02:35]}  exd4 {[%clk 0:02:33]} 10. Nxd4 {[%clk 0:02:35]}  Re8 {[%clk 0:02:32]} 11. Re1 {[%clk 0:02:33]}  a5 {[%clk 0:02:20]} 12. b3 {[%clk 0:02:31]}  h6 {[%clk 0:01:45]} 13. Ba3 {[%clk 0:02:25]}  Nc5 {[%clk 0:01:41]} 14. e5 {[%clk 0:02:18]}  Nfd7 {[%clk 0:01:41]} 15. e6 {[%clk 0:02:00]}  Nxe6 {[%clk 0:01:38]} 16. Nxe6 {[%clk 0:01:54]}  fxe6 {[%clk 0:01:39]} 17. Ne4 {[%clk 0:01:42]}  d5 {[%clk 0:01:38]} 18. Nd6 {[%clk 0:01:40]}  Bxa1 {[%clk 0:01:19]} 19. Nxe8 {[%clk 0:01:36]}  Qxe8 {[%clk 0:01:15]} 20. Qxa1 {[%clk 0:01:31]}  Qf7 {[%clk 0:01:15]} 21. f4 {[%clk 0:01:23]}  Nf6 {[%clk 0:01:09]} 22. Qd4 {[%clk 0:01:10]}  Bd7 {[%clk 0:01:08]} 23. Bb2 {[%clk 0:01:08]}  Rf8 {[%clk 0:01:07]} 24. g4 {[%clk 0:01:05]}  Kh7 {[%clk 0:01:04]} 25. Qb6 {[%clk 0:00:49]}  Bc8 {[%clk 0:01:03]} 26. Qxa5 {[%clk 0:00:47]}  Ne8 {[%clk 0:00:34]} 27. Rf1 {[%clk 0:00:44]}  Bd7 {[%clk 0:00:27]} 28. Qb6 {[%clk 0:00:42]}  Bc8 {[%clk 0:00:27]} 29. Qd4 {[%clk 0:00:42]}  Ng7 {[%clk 0:00:27]} 30. b4 {[%clk 0:00:39]}  Re8 {[%clk 0:00:21]} 31. b5 {[%clk 0:00:38]}  Bd7 {[%clk 0:00:20]} 32. a4 {[%clk 0:00:36]}  Ra8 {[%clk 0:00:18]} 33. bxc6 {[%clk 0:00:28]}  Bxc6 {[%clk 0:00:19]} 34. cxd5 {[%clk 0:00:26]}  Bxd5 {[%clk 0:00:17]} 35. Bxd5 {[%clk 0:00:25]}  exd5 {[%clk 0:00:18]} 36. f5 {[%clk 0:00:25]}  gxf5 {[%clk 0:00:17]} 37. gxf5 {[%clk 0:00:25]}  Rg8 {[%clk 0:00:16]} 38. Kh1 {[%clk 0:00:24]}  Nxf5 {[%clk 0:00:12]} 39. Qd3 {[%clk 0:00:23]}  Rf8 {[%clk 0:00:13]} 40. Rg1 {[%clk 0:00:18]}  Rg8 {[%clk 0:00:10]} 41. Rf1 {[%clk 0:00:16]}  Rf8 {[%clk 0:00:09]} 42. Rd1 {[%clk 0:00:15]}  Qg6 {[%clk 0:00:08]} 43. Rg1 {[%clk 0:00:14]}  Qe6 {[%clk 0:00:06]} 44. Rg7+ {[%clk 0:00:12]}  Kh8 {[%clk 0:00:06]} 45. Re7+ {[%clk 0:00:12]}  Qf6 {[%clk 0:00:05]} 46. Bxf6+ {[%clk 0:00:11]}  Rxf6 {[%clk 0:00:06]} 47. Re5 {[%clk 0:00:11]}  Ng7 {[%clk 0:00:04]} 48. Rxd5 {[%clk 0:00:11]}  Kg8 {[%clk 0:00:03]} 49. Rd8+ {[%clk 0:00:11]}  Kf7 {[%clk 0:00:04]} 50. Qd5+ {[%clk 0:00:10]}  Kg6 {[%clk 0:00:04]} 51. Rd6 {[%clk 0:00:11]}  Nf5 {[%clk 0:00:04]} 52. Rxf6+ {[%clk 0:00:10]}  Kxf6 {[%clk 0:00:05]} 53. Qxb7 {[%clk 0:00:10]}  Kg5 {[%clk 0:00:06]} 54. Kh2 {[%clk 0:00:10]}  Kf4 {[%clk 0:00:06]} 55. a5 {[%clk 0:00:10]}  h5 {[%clk 0:00:06]} 56. Qb8+ {[%clk 0:00:10]}  Kg5 {[%clk 0:00:06]} 57. a6 {[%clk 0:00:11]}  Nd6 {[%clk 0:00:07]} 58. Qxd6 {[%clk 0:00:10]}  Kh4 {[%clk 0:00:07]} 59. Qf4# {[%clk 0:00:10]} 1-0


[Site "https://www.chess.com"]

[Event "Titled Tuesday Blitz February 07 Late 2023"]
[White "Nasuta, Grzegorz"]
[Black "Bouget, Alexandre"]
[WhiteFideId "1141686"]
[BlackFideId "681318"]
[WhiteElo "2552"]
[BlackElo "2267"]
[Result "1/2-1/2"]
[Round "01"]
[TimeControl "180+2"]
[Date "2023.02.07"]
[WhiteClock "0:00:07"]
[BlackClock "0:00:07"]

1. e4 {[%clk 0:03:00]}  e6 {[%clk 0:02:57]} 2. d4 {[%clk 0:03:00]}  d5 {[%clk 0:02:56]} 3. Nc3 {[%clk 0:03:00]}  Bb4 {[%clk 0:02:55]} 4. exd5 {[%clk 0:03:00]}  exd5 {[%clk 0:02:54]} 5. Bd3 {[%clk 0:03:00]}  Nf6 {[%clk 0:02:49]} 6. Ne2 {[%clk 0:02:59]}  Bg4 {[%clk 0:02:43]} 7. f3 {[%clk 0:02:54]}  Bh5 {[%clk 0:02:43]} 8. O-O {[%clk 0:02:54]}  Bg6 {[%clk 0:02:40]} 9. Nf4 {[%clk 0:02:50]}  Bxd3 {[%clk 0:02:38]} 10. Qxd3 {[%clk 0:02:24]}  O-O {[%clk 0:02:36]} 11. Nce2 {[%clk 0:02:24]}  Bd6 {[%clk 0:02:33]} 12. Ng3 {[%clk 0:02:24]}  Re8 {[%clk 0:02:26]} 13. Nf5 {[%clk 0:02:24]}  Bf8 {[%clk 0:02:26]} 14. Qb3 {[%clk 0:02:22]}  b6 {[%clk 0:02:17]} 15. Nd3 {[%clk 0:02:23]}  c5 {[%clk 0:02:14]} 16. dxc5 {[%clk 0:02:20]}  bxc5 {[%clk 0:02:15]} 17. c4 {[%clk 0:02:21]}  Nc6 {[%clk 0:02:05]} 18. Bg5 {[%clk 0:01:41]}  Rb8 {[%clk 0:01:23]} 19. Qc3 {[%clk 0:01:38]}  d4 {[%clk 0:01:19]} 20. Qd2 {[%clk 0:01:32]}  h6 {[%clk 0:01:00]} 21. Bh4 {[%clk 0:01:25]}  Ne5 {[%clk 0:00:54]} 22. Nxe5 {[%clk 0:01:20]}  Rxe5 {[%clk 0:00:55]} 23. Qf4 {[%clk 0:01:19]}  Re2 {[%clk 0:00:47]} 24. Nxh6+ {[%clk 0:01:04]}  gxh6 {[%clk 0:00:37]} 25. Bxf6 {[%clk 0:01:04]}  Qd6 {[%clk 0:00:35]} 26. Qg4+ {[%clk 0:01:03]}  Kh7 {[%clk 0:00:34]} 27. Qf5+ {[%clk 0:01:03]}  Kg8 {[%clk 0:00:34]} 28. b3 {[%clk 0:01:04]}  Rbe8 {[%clk 0:00:30]} 29. f4 {[%clk 0:00:57]}  Bg7 {[%clk 0:00:21]} 30. Bxg7 {[%clk 0:00:44]}  Kxg7 {[%clk 0:00:22]} 31. Rf3 {[%clk 0:00:44]}  R8e3 {[%clk 0:00:19]} 32. Rxe3 {[%clk 0:00:39]}  Rxe3 {[%clk 0:00:16]} 33. Rd1 {[%clk 0:00:37]}  a5 {[%clk 0:00:10]} 34. h3 {[%clk 0:00:29]}  Kh8 {[%clk 0:00:10]} 35. Rd2 {[%clk 0:00:20]}  Qe7 {[%clk 0:00:10]} 36. Kh2 {[%clk 0:00:20]}  Re2 {[%clk 0:00:06]} 37. Rxe2 {[%clk 0:00:17]}  Qxe2 {[%clk 0:00:07]} 38. Qxf7 {[%clk 0:00:12]}  d3 {[%clk 0:00:07]} 39. Qf8+ {[%clk 0:00:11]}  Kh7 {[%clk 0:00:07]} 40. Qf7+ {[%clk 0:00:12]}  Kh8 {[%clk 0:00:07]} 41. Qf6+ {[%clk 0:00:09]}  Kh7 {[%clk 0:00:07]} 42. Qf7+ {[%clk 0:00:07]}  Kh8 {[%clk 0:00:07]} 1/2-1/2


[Site "https://www.chess.com"]

[Event "Titled Tuesday Blitz February 07 Late 2023"]
[White "Wartiovaara, Oliver"]
[Black "Bolourchifard, Farzad"]
[WhiteFideId "513024"]
[BlackFideId "12510084"]
[WhiteElo "2264"]
[BlackElo "2292"]
[Result "1-0"]
[Round "01"]
[TimeControl "180+2"]
[Date "2023.02.07"]
[WhiteClock "0:01:46"]
[BlackClock "0:00:15"]

1. c4 {[%clk 0:02:59]}  e6 {[%clk 0:03:00]} 2. g3 {[%clk 0:02:58]}  Nf6 {[%clk 0:03:00]} 3. Bg2 {[%clk 0:02:58]}  d5 {[%clk 0:02:55]} 4. Nf3 {[%clk 0:02:58]}  Be7 {[%clk 0:02:56]} 5. O-O {[%clk 0:02:58]}  O-O {[%clk 0:02:56]} 6. b3 {[%clk 0:02:55]}  c5 {[%clk 0:02:54]} 7. cxd5 {[%clk 0:02:53]}  Nxd5 {[%clk 0:02:50]} 8. Bb2 {[%clk 0:02:54]}  Nc6 {[%clk 0:02:49]} 9. d4 {[%clk 0:02:46]}  cxd4 {[%clk 0:02:15]} 10. Nxd4 {[%clk 0:02:47]}  Nxd4 {[%clk 0:02:08]} 11. Qxd4 {[%clk 0:02:44]}  Bf6 {[%clk 0:02:08]} 12. Qd2 {[%clk 0:02:45]}  Bxb2 {[%clk 0:01:37]} 13. Qxb2 {[%clk 0:02:45]}  b6 {[%clk 0:01:12]} 14. Nc3 {[%clk 0:02:37]}  Bb7 {[%clk 0:01:07]} 15. Nxd5 {[%clk 0:02:35]}  exd5 {[%clk 0:01:02]} 16. Rfd1 {[%clk 0:02:33]}  Re8 {[%clk 0:01:00]} 17. e4 {[%clk 0:02:28]}  Qd6 {[%clk 0:00:48]} 18. exd5 {[%clk 0:02:26]}  Rac8 {[%clk 0:00:47]} 19. Rd2 {[%clk 0:02:21]}  h6 {[%clk 0:00:46]} 20. Rad1 {[%clk 0:02:21]}  Re5 {[%clk 0:00:45]} 21. Qd4 {[%clk 0:02:17]}  Rce8 {[%clk 0:00:45]} 22. h4 {[%clk 0:02:16]}  g6 {[%clk 0:00:41]} 23. a3 {[%clk 0:02:02]}  Qxa3 {[%clk 0:00:38]} 24. d6 {[%clk 0:02:02]}  Re1+ {[%clk 0:00:28]} 25. Rxe1 {[%clk 0:01:57]}  Rxe1+ {[%clk 0:00:29]} 26. Kh2 {[%clk 0:01:57]}  Bxg2 {[%clk 0:00:28]} 27. d7 {[%clk 0:01:52]}  Bf3 {[%clk 0:00:13]} 28. d8=Q+ {[%clk 0:01:50]}  Qf8 {[%clk 0:00:14]} 29. Qh8+ {[%clk 0:01:46]}  Kxh8 {[%clk 0:00:14]} 30. Qxf8+ {[%clk 0:01:46]}  Kh7 {[%clk 0:00:15]} 31. Qxf7+ {[%clk 0:01:46]} 1-0


[Site "https://www.chess.com"]

[Event "Titled Tuesday Blitz February 07 Late 2023"]
[White "Cabarkapa, Novak"]
[Black "Kielinkei"]
[WhiteFideId "943746"]
[WhiteElo "2458"]
[BlackElo "2394"]
[Result "1-0"]
[Round "01"]
[TimeControl "180+2"]
[Date "2023.02.07"]
[WhiteClock "0:01:29"]
[BlackClock "0:00:06"]

1. h4 {[%clk 0:03:00]}  e5 {[%clk 0:02:59]} 2. c3 {[%clk 0:02:59]}  d5 {[%clk 0:02:59]} 3. d4 {[%clk 0:03:00]}  e4 {[%clk 0:02:59]} 4. Bf4 {[%clk 0:02:58]}  Bd6 {[%clk 0:02:59]} 5. Qc1 {[%clk 0:02:56]}  Nf6 {[%clk 0:02:57]} 6. Nh3 {[%clk 0:02:55]}  Bg4 {[%clk 0:02:51]} 7. Na3 {[%clk 0:02:46]}  c6 {[%clk 0:02:51]} 8. Nc2 {[%clk 0:02:46]}  O-O {[%clk 0:02:48]} 9. Bxd6 {[%clk 0:02:41]}  Qxd6 {[%clk 0:02:48]} 10. Qf4 {[%clk 0:02:42]}  Rd8 {[%clk 0:02:41]} 11. Qxd6 {[%clk 0:02:30]}  Rxd6 {[%clk 0:02:41]} 12. Nf4 {[%clk 0:02:30]}  h6 {[%clk 0:02:32]} 13. Ne3 {[%clk 0:02:24]}  Bd7 {[%clk 0:02:30]} 14. Rg1 {[%clk 0:02:23]}  Ng4 {[%clk 0:02:27]} 15. Nxg4 {[%clk 0:02:20]}  Bxg4 {[%clk 0:02:27]} 16. f3 {[%clk 0:02:21]}  Bf5 {[%clk 0:02:13]} 17. g4 {[%clk 0:02:20]}  Bh7 {[%clk 0:02:14]} 18. g5 {[%clk 0:02:14]}  Nd7 {[%clk 0:02:10]} 19. Bh3 {[%clk 0:02:05]}  Nb6 {[%clk 0:02:08]} 20. b3 {[%clk 0:02:04]}  Re8 {[%clk 0:02:06]} 21. Kf2 {[%clk 0:02:03]}  Nc8 {[%clk 0:01:23]} 22. Bxc8 {[%clk 0:02:00]}  Rxc8 {[%clk 0:01:22]} 23. Rg2 {[%clk 0:01:55]}  exf3 {[%clk 0:00:56]} 24. exf3 {[%clk 0:01:55]}  hxg5 {[%clk 0:00:48]} 25. hxg5 {[%clk 0:01:53]}  Bf5 {[%clk 0:00:31]} 26. Rh2 {[%clk 0:01:51]}  Re8 {[%clk 0:00:27]} 27. Rah1 {[%clk 0:01:38]}  Kf8 {[%clk 0:00:27]} 28. Rh8+ {[%clk 0:01:39]}  Ke7 {[%clk 0:00:27]} 29. Re1+ {[%clk 0:01:39]}  Be6 {[%clk 0:00:27]} 30. Rh7 {[%clk 0:01:38]}  Rg8 {[%clk 0:00:17]} 31. g6 {[%clk 0:01:38]}  Kf6 {[%clk 0:00:16]} 32. gxf7 {[%clk 0:01:35]}  Bxf7 {[%clk 0:00:08]} 33. Rhh1 {[%clk 0:01:28]}  Re8 {[%clk 0:00:07]} 34. Nd3 {[%clk 0:01:28]}  Rxe1 {[%clk 0:00:06]} 35. Rxe1 {[%clk 0:01:29]} 1-0


[Site "https://www.chess.com"]